bitfinex-derivatives/quotes_SOLF0:USTF0_20260105
["timestamp","ask_amount","ask_price","bid_price","bid_amount"]
[1767587688167,2.47901156,135.35,135.27,6.656]
[1767587688373,9.13151156,135.35,135.26,0.45589054]
[1767587688573,9.13151156,135.35,135.26,7.11259054]
[1767587690471,9.13151156,135.35,135.27,0.45589054]
[1767587694870,87.3,135.34,135.24,20.38404493]
[1767587695068,2.47901156,135.31,135.23,0.45589054]
[1767587695268,2.47901156,135.31,135.21,0.45589054]
[1767587695776,6.6551,135.3,135.21,0.45589054]
[1767587697868,9.13461156,135.29,135.19,0.45589054]
[1767587698073,96.45461156,135.29,135.19,0.45589054]
[1767587699674,96.45461156,135.29,135.19,7.11599054]
[1767587700276,96.45461156,135.29,135.2,0.45589054]
[1767587701074,2.47901156,135.25,135.17,0.40332598]
[1767587702575,9.13651156,135.25,135.17,0.40332598]
[1767587704276,9.13651156,135.25,135.15,7.06522598]
[1767587708584,9.13651156,135.25,135.16,0.40332598]
[1767587708777,2.47901156,135.23,135.14,0.40332598]
[1767587708973,2.47901156,135.21,135.14,0.40332598]
[1767587709579,2.47901156,135.21,135.11,7.06722598]
[1767587709783,2.47901156,135.19,135.11,0.40332598]
[1767587711381,2.47901156,135.21,135.11,7.06732598]
[1767587712686,9.13851156,135.21,135.12,0.40332598]
[1767587712884,9.13851156,135.21,135.11,6.664]
[1767587713085,9.13851156,135.21,135.11,7.06732598]
[1767587713281,9.13851156,135.21,135.11,6.664]
[1767587713486,9.13851156,135.21,135.12,0.40332598]
[1767587715883,9.13851156,135.21,135.13,0.40332598]
[1767587717587,190.9296,135.24,135.14,0.40332598]
[1767587717588,9.13741156,135.23,135.14,0.40332598]
[1767587717892,2.47901156,135.23,135.14,0.40332598]
[1767587718091,89.83901156,135.24,135.14,0.40332598]
[1767587718687,89.83901156,135.24,135.15,0.40332598]
[1767587720891,89.83901156,135.24,135.15,7.06532598]
[1767587722190,89.83901156,135.24,135.16,0.40332598]
[1767587722389,87.36,135.24,135.16,0.40332598]
[1767587723893,87.36,135.24,135.18,0.40332598]
[1767587724394,6.6556,135.29,135.19,0.40332598]
[1767587724592,95.64368784,135.29,135.2,1.99141382]
[1767587724790,94.0556,135.29,135.2,1.99141382]
[1767587724992,94.0556,135.29,135.21,0.40332598]
[1767587725296,8.24418784,135.28,135.19,1.99141382]
[1767587727993,1.58808784,135.28,135.2,0.40332598]
[1767587728188,87.4,135.29,135.22,0.40332598]
[1767587728396,87.4,135.29,135.2,0.40332598]
[1767587728397,1.58808784,135.26,135.2,0.40332598]
[1767587728792,1.58808784,135.26,135.17,89.37141382]
[1767587729094,1.58808784,135.26,135.18,0.40332598]
[1767587729498,1.58808784,135.26,135.18,7.06382598]
[1767587729701,1.58808784,135.26,135.19,0.40332598]
[1767587730388,1.58808784,135.26,135.17,1.98598701]
[1767587730595,6.6565,135.27,135.17,0.39789917]
[1767587730596,1.58808784,135.24,135.17,0.39789917]
[1767587731485,1.58808784,135.22,135.17,0.39789917]
[1767587732201,1.58808784,135.22,135.15,0.39789917]
[1767587732400,1.58808784,135.2,135.12,94.0434]
[1767587732701,190.9502,135.24,135.12,94.0434]
[1767587732702,190.9502,135.24,135.13,0.39789917]
[1767587732894,1.58808784,135.21,135.13,0.39789917]
[1767587733701,8.24748784,135.21,135.13,0.39789917]
[1767587735402,1.58808784,135.2,135.13,0.39789917]
[1767587737394,6.6594,135.21,135.13,0.39789917]
[1767587737596,1.58808784,135.2,135.13,0.39789917]
[1767587739303,6.659,135.22,135.13,0.39789917]
[1767587739497,1.58808784,135.2,135.13,0.39789917]
[1767587740102,8.24708784,135.22,135.13,0.39789917]
[1767587740902,1.58808784,135.21,135.13,7.06069917]
[1767587742701,94.0378,135.24,135.14,7.06235189]
[1767587742901,1.58808784,135.22,135.14,7.06235189]
[1767587744506,1.58808784,135.23,135.16,0.39985189]
[1767587746306,1.58808784,135.24,135.17,1.98793973]
[1767587746905,87.4,135.25,135.18,0.39985189]
[1767587747800,1.58808784,135.27,135.2,0.39985189]
[1767587747997,6.6561,135.28,135.2,0.39985189]
[1767587748201,6.6561,135.28,135.21,1.58808784]
[1767587748912,95.64318784,135.3,135.21,1.98793973]
[1767587749310,94.0551,135.3,135.21,1.98793973]
[1767587749500,95.64318784,135.3,135.21,1.98793973]
[1767587749904,95.64318784,135.3,135.23,1.98793973]
[1767587750102,87.4,135.3,135.23,1.98793973]
[1767587754414,95.62118784,135.34,135.25,1.58808784]
[1767587754801,95.62118784,135.34,135.25,1.98793973]
[1767587756109,95.62118784,135.34,135.26,0.39985189]
[1767587756310,94.0331,135.34,135.26,0.39985189]
[1767587756514,88.96808784,135.34,135.26,0.39985189]
[1767587758109,1.58808784,135.32,135.24,0.39985189]
[1767587758418,1.58808784,135.3,135.24,0.39985189]
[1767587758617,1.58808784,135.32,135.24,0.39985189]
[1767587759410,1.58808784,135.32,135.25,1.98793973]
[1767587760220,88.96808784,135.34,135.26,0.39985189]
[1767587760611,87.38,135.34,135.27,1.97316365]
[1767587760810,87.38,135.34,135.27,0.38507581]
[1767587761309,87.38,135.34,135.28,0.38507581]
[1767587761611,1.58808784,135.35,135.29,0.38507581]
[1767587761813,1.58808784,135.34,135.26,0.38507581]
[1767587762011,1.58808784,135.32,135.26,0.38507581]
[1767587762610,103.4696,135.37,135.26,0.38507581]
[1767587762810,1.58808784,135.33,135.26,0.38507581]
[1767587763316,1.58808784,135.34,135.26,8.62976365]
[1767587765107,1.58808784,135.34,135.27,0.38507581]
[1767587765410,1.58808784,135.36,135.28,0.38507581]
[1767587765709,1.58808784,135.36,135.29,0.38507581]
[1767587765909,1.58808784,135.36,135.29,1.97316365]
[1767587766711,1.58808784,135.36,135.29,7.03997581]
[1767587766910,1.58808784,135.37,135.29,8.62806365]
[1767587768212,87.36,135.38,135.29,8.62806365]
[1767587768406,1.58808784,135.37,135.29,8.62806365]
[1767587768609,1.58808784,135.37,135.29,7.03997581]
[1767587768815,1.58808784,135.37,135.29,8.62806365]
[1767587769009,1.58808784,135.37,135.29,7.03997581]
[1767587769212,1.58808784,135.37,135.29,8.62806365]
[1767587769607,1.58808784,135.37,135.29,8.24298784]
[1767587769916,1.58808784,135.37,135.3,0.38507581]
[1767587770615,1.58808784,135.37,135.3,7.03967581]
[1767587771118,87.36,135.38,135.31,0.38507581]
[1767587771921,87.36,135.38,135.31,7.03917581]
[1767587772117,87.36,135.38,135.32,0.38507581]
[1767587773918,87.36,135.38,135.28,103.5326]
[1767587773919,35.02998258,135.47,135.35,1.58808784]
[1767587774122,103.3985,135.46,135.36,0.38507581]
[1767587774319,1.58808784,135.4,135.33,0.38507581]
[1767587774519,6.6487,135.43,135.4,0.05314736]
[1767587774716,1.58808784,135.41,135.33,0.38507581]
[1767587774915,0.05585963,135.38,135.33,0.38507581]
[1767587775121,1.64394747,135.38,135.33,0.38507581]
[1767587775420,1.58808784,135.36,135.3,0.38507581]
[1767587776220,0.05377824,135.34,135.3,0.38507581]
[1767587776815,1.58808784,135.36,135.3,0.38507581]
[1767587778116,1.58808784,135.36,135.32,0.04827908]
[1767587779029,1.58808784,135.35,135.32,0.04827908]
[1767587779928,6.6506,135.39,135.32,0.04827908]
[1767587780129,1.58808784,135.37,135.32,0.04827908]
[1767587780521,6.6506,135.39,135.32,0.04827908]
[1767587780722,1.58808784,135.37,135.32,0.04827908]
[1767587781422,1.58808784,135.35,135.32,0.04827908]
[1767587781629,1.58808784,135.35,135.27,1.97316365]
[1767587781921,1.58808784,135.35,135.28,0.38507581]
[1767587782727,6.6512,135.38,135.28,0.38507581]
[1767587782924,1.58808784,135.36,135.28,0.38507581]
[1767587783120,1.58808784,135.36,135.28,7.04067581]
[1767587784027,1.58808784,135.35,135.28,7.04067581]
[1767587784532,2.47859212,135.37,135.28,7.04067581]
[1767587784725,2.47859212,135.37,135.29,7.04007581]
[1767587784932,2.47859212,135.38,135.3,0.38507581]
[1767587785130,2.47859212,135.39,135.3,0.38507581]
[1767587785332,2.47859212,135.39,135.31,7.03917581]
[1767587785537,2.47859212,135.39,135.32,0.38507581]
[1767587786232,2.47859212,135.41,135.33,0.38507581]
[1767587786436,89.79859212,135.42,135.33,0.38507581]
[1767587787623,89.79859212,135.42,135.33,7.03827581]
[1767587787827,2.47859212,135.4,135.3,0.38507581]
[1767587788238,0.05131709,135.36,135.3,0.38507581]
[1767587789638,0.05131709,135.36,135.31,7.03917581]
[1767587790039,0.05131709,135.36,135.31,0.38507581]
[1767587791634,0.05131709,135.36,135.32,6.6536]
[1767587792628,87.32,135.42,135.34,0.38271313]
[1767587793145,2.47859212,135.41,135.31,0.38271313]
[1767587794038,2.47859212,135.41,135.35,0.05076667]
[1767587794538,9.12819212,135.41,135.35,0.05076667]
[1767587796848,2.47859212,135.37,135.28,0.40235976]
[1767587797029,2.47859212,135.37,135.26,13.72654493]
[1767587797030,2.47859212,135.37,135.26,0.40235976]
[1767587797234,2.47859212,135.37,135.27,0.40235976]
[1767587797532,2.47859212,135.37,135.28,7.05795976]
[1767587799844,6.6507,135.39,135.3,0.40235976]
[1767587800444,0.04687856,135.36,135.3,0.40235976]
[1767587800942,0.04687856,135.36,135.31,0.40235976]
[1767587801735,89.79859212,135.42,135.33,7.05555976]
[1767587801940,87.32,135.42,135.34,0.40235976]
[1767587802135,6.6487,135.43,135.34,0.40235976]
[1767587802747,2.47859212,135.42,135.34,0.40235976]
[1767587803143,2.47859212,135.42,135.37,0.05033263]
[1767587803449,9.12779212,135.42,135.32,0.40235976]
[1767587804449,2.47859212,135.4,135.3,13.72654493]
[1767587804643,2.47859212,135.38,135.29,7.05735976]
[1767587805136,0.04913286,135.35,135.29,7.05735976]
[1767587805540,6.6507,135.39,135.29,7.05735976]
[1767587805843,2.47859212,135.38,135.29,7.05735976]
[1767587806439,9.12989212,135.38,135.29,6.655]
[1767587806654,2.47859212,135.38,135.27,7.05835976]
[1767587806946,2.47859212,135.38,135.32,0.0471397]
[1767587807243,2.47859212,135.36,135.27,7.05835976]
[1767587807442,0.04845824,135.34,135.29,0.40235976]
[1767587808642,0.04845824,135.34,135.29,7.05745976]
[1767587812343,0.04845824,135.34,135.3,0.40235976]
[1767587821750,87.28,135.39,135.3,0.40235976]
[1767587821953,6.6501,135.4,135.31,0.39712345]
[1767587822757,6.6501,135.4,135.32,0.39712345]
[1767587823159,6.6501,135.4,135.34,0.04800239]
[1767587823367,9.12789212,135.42,135.34,0.04800239]
[1767587826765,6.6493,135.42,135.34,0.44512584]
[1767587827569,6.6493,135.42,135.34,7.09782584]
[1767587828271,87.3,135.43,135.35,7.04912345]
[1767587828571,87.3,135.43,135.34,0.04800239]
[1767587828572,87.3,135.43,135.36,0.39712345]
[1767587829071,6.6471,135.46,135.38,0.4510774]
[1767587829371,93.9271,135.46,135.38,0.4510774]
[1767587831971,87.28,135.46,135.38,0.4510774]
[1767587832577,2.47859212,135.44,135.38,0.05395395]
[1767587833473,9.12689212,135.44,135.38,0.05395395]
[1767587834482,9.12689212,135.44,135.34,0.39712345]
[1767587834483,6.6487,135.43,135.34,0.39712345]
[1767587834681,87.28,135.42,135.34,0.39712345]
[1767587834985,87.33586784,135.42,135.34,0.39712345]
[1767587836786,93.98496784,135.42,135.34,0.39712345]
[1767587838195,93.98496784,135.42,135.32,0.39712345]
[1767587838196,6.6498,135.41,135.32,0.39712345]
[1767587838382,193.24585996,135.42,135.32,0.39712345]
[1767587838582,193.18999212,135.42,135.32,0.39712345]
[1767587839082,0.05691364,135.38,135.32,0.39712345]
[1767587840687,0.05691364,135.38,135.33,0.39712345]
[1767587845092,0.05691364,135.38,135.34,0.39712345]
[1767587845595,88.86544587,135.42,135.34,0.39712345]
[1767587845795,88.86544587,135.42,135.35,2.03370142]
[1767587846091,87.28,135.42,135.36,0.39712345]
[1767587847292,8.23314587,135.45,135.38,0.39712345]
[1767587848194,8.23314587,135.45,135.4,0.0503511]
[1767587852100,87.28,135.46,135.4,0.0503511]
[1767587853199,87.28,135.46,135.4,0.44556126]
[1767587854902,8.23124587,135.49,135.41,0.39521016]
[1767587855102,95.49124587,135.49,135.41,0.39521016]
[1767587855401,88.84544587,135.49,135.41,0.39521016]
[1767587855797,88.84544587,135.49,135.44,0.04885974]
[1767587856707,1.58544587,135.47,135.39,0.39979248]
[1767587857196,1.58544587,135.45,135.39,0.39979248]
[1767587857601,88.84544587,135.45,135.37,0.39979248]
[1767587857902,1.58544587,135.43,135.37,0.39979248]
[1767587860810,95.49304587,135.45,135.37,0.39979248]
[1767587863110,0.04684151,135.42,135.37,0.39979248]
[1767587863903,0.04684151,135.42,135.34,20.37924493]
[1767587864098,1.58544587,135.39,135.32,0.39979248]
[1767587866103,0.0472972,135.37,135.32,0.39979248]
[1767587869216,1.63274307,135.37,135.31,6.654]
[1767587869413,1.63274307,135.37,135.31,7.05379248]
[1767587869611,1.63274307,135.37,135.32,0.39979248]
[1767587871017,0.0472972,135.37,135.32,0.39979248]
[1767587874424,0.0472972,135.37,135.33,0.39979248]
[1767587874819,87.26,135.41,135.33,0.39979248]
[1767587875011,88.84544587,135.41,135.34,0.4478569]
[1767587875616,87.26,135.41,135.35,0.39979248]
[1767587876324,1.58544587,135.43,135.35,0.39979248]
[1767587877122,1.58544587,135.43,135.38,0.05298819]
[1767587878926,8.23414587,135.43,135.38,0.05298819]
[1767587879125,1.58544587,135.41,135.38,0.05298819]
[1767587880415,1.58544587,135.41,135.33,1.98523835]
[1767587880620,1.58544587,135.41,135.34,0.37699199]
[1767587880918,1.63686403,135.41,135.34,0.37699199]
[1767587881119,1.63686403,135.41,135.32,20.38004493]
[1767587881120,1.63686403,135.41,135.32,6.6535]
[1767587881318,1.63686403,135.41,135.32,7.03049199]
[1767587881519,1.58544587,135.41,135.32,7.03049199]
[1767587882228,1.58544587,135.41,135.33,0.37699199]
[1767587882418,0.04661629,135.38,135.33,0.37699199]
[1767587882820,1.58544587,135.41,135.34,0.04693974]
[1767587883026,1.58544587,135.41,135.34,0.42393173]
[1767587883726,1.58544587,135.41,135.35,0.37699199]
[1767587884029,1.58544587,135.42,135.35,0.37699199]
[1767587886430,8.23454587,135.42,135.33,1.96243786]
[1767587886735,1.58544587,135.4,135.33,1.96243786]
[1767587887736,1.58544587,135.4,135.33,0.37699199]
[1767587888937,8.23564587,135.4,135.35,0.05329526]
[1767587889126,1.58544587,135.4,135.35,0.05329526]
[1767587890734,1.58544587,135.41,135.35,0.05329526]
[1767587891133,1.58544587,135.41,135.33,0.37699199]
[1767587891737,103.4167,135.44,135.33,0.37699199]
[1767587891928,1.58544587,135.41,135.33,0.37699199]
[1767587892535,8.23494587,135.41,135.33,0.37699199]
[1767587894529,1.58544587,135.37,135.3,0.37699199]
[1767587894830,103.4473,135.4,135.3,0.37699199]
[1767587895032,103.439,135.41,135.3,0.37699199]
[1767587895033,8.23654587,135.38,135.3,0.37699199]
[1767587897028,8.23654587,135.38,135.33,0.05156159]
[1767587900339,1.58544587,135.36,135.33,0.05156159]
[1767587903344,1.58544587,135.37,135.33,0.05156159]
[1767587904840,1.58544587,135.35,135.27,0.37699199]
[1767587905145,1.58544587,135.33,135.25,0.37699199]
[1767587905645,103.4673,135.37,135.25,0.37699199]
[1767587905844,1.58544587,135.33,135.25,0.37699199]
[1767587906639,6.653,135.34,135.26,0.37699199]
[1767587910448,2.47978373,135.35,135.27,0.39376356]
[1767587910756,6.6522,135.36,135.27,0.39376356]
[1767587910950,6.6522,135.36,135.25,16.20632866]
[1767587910951,2.47978373,135.38,135.29,0.39376356]
[1767587911157,6.6511,135.38,135.29,0.39376356]
[1767587911345,87.28,135.39,135.29,2.47978373]
[1767587911556,87.28,135.39,135.32,0.39376356]
[1767587914651,96.42848373,135.43,135.33,0.39376356]
[1767587915551,96.42848373,135.43,135.34,0.39376356]
[1767587915746,93.9487,135.43,135.34,0.39376356]
[1767587916550,103.4008,135.46,135.35,0.39071235]
[1767587916551,89.77978373,135.45,135.35,0.39071235]
[1767587917559,6.6481,135.44,135.35,0.39071235]
[1767587917857,0.05327017,135.41,135.35,0.39071235]
[1767587918462,0.05327017,135.41,135.33,0.39071235]
[1767587918853,6.6487,135.43,135.33,0.39071235]
[1767587919861,105.90448373,135.43,135.31,0.39071235]
[1767587921653,105.92098373,135.41,135.29,2.47978373]
[1767587921863,2.47978373,135.39,135.29,0.39071235]
[1767587923564,6.6512,135.38,135.29,0.39071235]
[1767587927463,87.28,135.4,135.3,0.39071235]
[1767587927860,87.28,135.4,135.31,0.39071235]
[1767587928370,87.28,135.4,135.31,2.87049608]
[1767587928560,87.28,135.4,135.32,7.04431235]
[1767587928961,87.28,135.4,135.32,0.39071235]
[1767587932971,89.75978373,135.4,135.3,0.39071235]
[1767587933667,96.40998373,135.4,135.3,0.39071235]
[1767587940284,6.6506,135.39,135.3,0.39071235]
[1767587941781,89.75978373,135.4,135.31,0.39258032]
[1767587942279,93.9301,135.4,135.31,0.39258032]
[1767587942582,87.28,135.4,135.32,0.39258032]
[1767587943279,87.28,135.4,135.31,6.6541]
[1767587943280,89.75978373,135.4,135.3,0.39258032]
[1767587943473,2.47978373,135.38,135.3,0.39258032]
[1767587943883,9.13088373,135.38,135.3,0.39258032]
[1767587947894,96.41008373,135.4,135.31,0.39258032]
[1767587948187,93.9303,135.4,135.31,0.39258032]
[1767587953383,93.9303,135.4,135.28,13.72654493]
[1767587953384,2.47978373,135.37,135.28,13.72654493]
[1767587953592,2.47978373,135.37,135.27,0.39258032]
[1767587954481,6.6521,135.36,135.27,7.04868032]
[1767587954790,2.47978373,135.35,135.27,7.04868032]
[1767587955277,2.47978373,135.35,135.26,13.72654493]
[1767587955474,2.47978373,135.35,135.26,0.39258032]
[1767587955684,89.77978373,135.35,135.26,0.39258032]
[1767587956493,96.43238373,135.35,135.26,0.39258032]
[1767587956689,0.04722966,135.32,135.26,0.39258032]
[1767587958977,0.04722966,135.32,135.24,20.77672525]
[1767587959493,0.04722966,135.32,135.24,7.05018032]
[1767587959691,0.04722966,135.32,135.25,0.39258032]
[1767587964001,0.04722966,135.32,135.26,0.39258032]
[1767587964697,0.04722966,135.32,135.27,0.39258032]
[1767587967002,88.88661825,135.35,135.28,0.39258032]
[1767587967193,88.88661825,135.35,135.29,0.39258032]
[1767587967394,1.58661825,135.37,135.29,0.39258032]
[1767587970203,1.58661825,135.37,135.3,0.39258032]
[1767587970907,1.58661825,135.35,135.28,0.39989291]
[1767587972409,1.58661825,135.34,135.26,1.98651116]
[1767587972808,1.58661825,135.32,135.26,0.39989291]
[1767587974010,6.6533,135.34,135.26,0.39989291]
[1767587974305,1.58661825,135.33,135.26,0.39989291]
[1767587974502,6.6519,135.36,135.27,0.39989291]
[1767587974707,1.58661825,135.37,135.29,0.39989291]
[1767587975798,8.23821825,135.37,135.29,0.39989291]
[1767587976402,1.58661825,135.35,135.27,8.63606673]
[1767587977804,1.58661825,135.35,135.28,0.39334848]
[1767587978010,6.6516,135.37,135.28,0.39334848]
[1767587978210,1.58661825,135.35,135.28,0.39334848]
[1767587979807,6.6516,135.37,135.28,0.39334848]
[1767587980112,1.58661825,135.35,135.28,0.39334848]
[1767587983609,8.23921825,135.35,135.26,0.39334848]
[1767587985814,8.23921825,135.35,135.27,0.39334848]
[1767587988012,6.6526,135.35,135.27,0.39334848]
[1767587988217,6.6526,135.35,135.28,0.39334848]
[1767587988420,1.58661825,135.36,135.28,0.39334848]
[1767587989917,6.6516,135.37,135.28,0.39334848]
[1767587990113,8.23821825,135.37,135.28,0.39334848]
[1767587990410,8.23821825,135.37,135.28,1.97996673]
[1767587990810,1.58661825,135.35,135.27,8.63606673]
[1767587993220,1.58661825,135.35,135.27,7.04944848]
[1767587994529,1.58661825,135.35,135.28,0.39334848]
[1767587996323,6.6521,135.36,135.28,0.39334848]
[1767587996524,8.23871825,135.36,135.28,0.39334848]
[1767587998322,8.23871825,135.36,135.28,1.97996673]
[1767587998526,8.23871825,135.36,135.29,0.39334848]
[1767588000824,6.6526,135.35,135.27,15.70628056]
[1767588001028,6.6526,135.35,135.28,0.39311738]
[1767588001231,8.23921825,135.35,135.28,0.39311738]
[1767588002320,1.58661825,135.35,135.26,15.70628056]
[1767588002523,1.58661825,135.31,135.25,13.72654493]
[1767588002819,1.58661825,135.31,135.24,14.11966231]
[1767588003030,1.58661825,135.31,135.22,14.11966231]
[1767588003222,1.58661825,135.31,135.23,0.39311738]
[1767588004434,1.58661825,135.31,135.23,1.97973563]
[1767588005635,88.88661825,135.33,135.24,0.39311738]
[1767588005831,87.3,135.33,135.24,0.39311738]
[1767588006030,88.88661825,135.33,135.24,0.39311738]
[1767588013338,6.6539,135.32,135.24,0.39311738]
[1767588013536,1.58661825,135.31,135.22,13.72654493]
[1767588013730,1.58661825,135.29,135.22,13.72654493]
[1767588014140,1.58661825,135.29,135.22,14.11966231]
[1767588014641,1.58661825,135.3,135.23,0.39311738]
[1767588014844,1.58661825,135.3,135.24,0.39311738]
[1767588015244,1.58661825,135.32,135.25,0.39311738]
[1767588015440,1.58661825,135.34,135.26,0.39311738]
[1767588016641,95.55911825,135.35,135.26,0.39311738]
[1767588016837,103.4556,135.39,135.28,0.39311738]
[1767588016838,1.58661825,135.36,135.28,0.39311738]
[1767588017446,93.9716,135.37,135.29,1.58661825]
[1767588017743,87.32,135.37,135.3,0.39311738]
[1767588018446,87.32,135.37,135.31,1.97973563]
[1767588019744,6.6506,135.39,135.31,1.97973563]
[1767588020146,87.32,135.4,135.31,1.97973563]
[1767588020345,88.90661825,135.4,135.31,1.97973563]
[1767588022850,1.58661825,135.38,135.29,0.39311738]
[1767588023050,1.58661825,135.37,135.29,0.39311738]
[1767588023346,1.58661825,135.39,135.3,0.39311738]
[1767588023543,1.58661825,135.37,135.3,0.39311738]
[1767588024649,87.32,135.4,135.3,0.39311738]
[1767588024852,1.58661825,135.37,135.29,1.58661825]
[1767588025552,1.58661825,135.37,135.29,1.97973563]
[1767588025941,1.58661825,135.38,135.29,1.97973563]
[1767588026146,1.58661825,135.38,135.3,0.39311738]
[1767588026551,96.44797884,135.4,135.3,0.39311738]
[1767588028560,93.9702,135.4,135.3,0.39311738]
[1767588030057,93.9702,135.4,135.31,0.39311738]
[1767588030261,87.32,135.4,135.31,0.39311738]
[1767588031454,87.32,135.4,135.29,2.47777884]
[1767588031758,87.32,135.4,135.3,0.3744503]
[1767588032555,93.9702,135.4,135.3,0.3744503]
[1767588040063,93.9702,135.4,135.31,0.40794199]
[1767588040765,87.32,135.4,135.32,0.40794199]
[1767588044067,87.32,135.4,135.33,0.40794199]
[1767588049574,35.46098068,135.42,135.34,0.40794199]
[1767588051066,35.46098068,135.42,135.33,6.6531]
[1767588051372,35.46098068,135.42,135.32,0.40794199]
[1767588051575,42.11008068,135.42,135.32,0.40794199]
[1767588052575,42.11008068,135.42,135.33,0.40794199]
[1767588056878,42.11008068,135.42,135.33,7.06104199]
[1767588057775,2.47777884,135.39,135.28,0.40794199]
[1767588057977,89.75777884,135.39,135.28,0.40794199]
[1767588059677,6.6511,135.38,135.29,0.40794199]
[1767588061077,2.47777884,135.35,135.27,0.36304755]
[1767588062477,9.13027884,135.35,135.27,0.36304755]
[1767588068487,9.13027884,135.35,135.25,0.36304755]
[1767588069690,9.13027884,135.35,135.26,0.36304755]
[1767588074494,9.13027884,135.35,135.27,0.36304755]
[1767588075392,6.6525,135.35,135.27,0.36304755]
[1767588076393,2.47777884,135.38,135.28,0.36304755]
[1767588076790,2.47777884,135.38,135.3,0.36304755]
[1767588076993,93.9307,135.39,135.3,0.36304755]
[1767588078493,87.28,135.39,135.31,0.36304755]
[1767588079695,2.47777884,135.38,135.29,0.36304755]
[1767588081402,6.6506,135.39,135.3,0.36304755]
[1767588082496,6.6506,135.39,135.3,7.01764755]
[1767588082804,6.6506,135.39,135.31,0.36304755]
[1767588083292,87.3,135.4,135.31,0.36304755]
[1767588083693,87.3,135.4,135.32,0.36304755]
[1767588084604,87.3,135.4,135.33,0.36304755]
[1767588084791,35.46098068,135.42,135.33,0.36304755]
[1767588085192,35.46098068,135.42,135.34,0.36304755]
[1767588085797,35.46098068,135.42,135.35,0.36304755]
[1767588086805,87.3,135.44,135.35,0.36304755]
[1767588087205,9.12557884,135.45,135.35,0.36304755]
[1767588087412,9.12457884,135.47,135.37,0.36304755]
[1767588088494,1.5840528,135.45,135.37,1.94710035]
[1767588091100,1.5840528,135.45,135.36,8.2356528]
[1767588091702,1.5840528,135.45,135.36,8.59209706]
[1767588092610,1.5840528,135.45,135.36,7.00804426]
[1767588095106,6.6472,135.46,135.36,7.00804426]
[1767588095314,1.5840528,135.44,135.36,7.00804426]
[1767588095515,1.5840528,135.44,135.37,0.35644426]
[1767588097011,1.5840528,135.44,135.35,1.5840528]
[1767588097213,1.5840528,135.42,135.34,7.00431958]
[1767588097717,8.2331528,135.42,135.34,0.35181958]
[1767588097916,1.5840528,135.42,135.34,0.35181958]
[1767588098117,1.5840528,135.4,135.34,0.35181958]
[1767588098614,1.5840528,135.4,135.32,7.00531958]
[1767588098811,1.5840528,135.4,135.32,0.35181958]
[1767588099518,1.5840528,135.38,135.3,0.35181958]
[1767588099718,1.5840528,135.38,135.3,1.93587238]
[1767588100017,1.5840528,135.38,135.3,1.5840528]
[1767588100216,1.5840528,135.38,135.3,0.35181958]
[1767588101513,1.5840528,135.36,135.3,0.35181958]
[1767588102114,1.5840528,135.36,135.28,0.35181958]
[1767588102816,1.5840528,135.34,135.27,0.35181958]
[1767588106217,6.6522,135.36,135.27,0.35181958]
[1767588106420,1.5840528,135.34,135.27,0.35181958]
[1767588109420,1.5840528,135.3,135.24,0.35181958]
[1767588109623,103.492,135.34,135.22,0.35181958]
[1767588109823,1.5840528,135.29,135.22,0.35181958]
[1767588110219,1.5840528,135.3,135.23,0.35181958]
[1767588110722,1.5840528,135.3,135.23,7.00981958]
[1767588110924,1.5840528,135.32,135.24,0.35181958]
[1767588111114,1.5840528,135.32,135.24,1.93587238]
[1767588111626,6.6531,135.34,135.24,1.93587238]
[1767588111820,1.5840528,135.33,135.24,1.93587238]
[1767588112422,1.5840528,135.33,135.25,0.35181958]
[1767588115727,87.28,135.35,135.27,0.35181958]
[1767588115926,88.8640528,135.35,135.27,0.35181958]
[1767588117318,1.5840528,135.33,135.25,0.35181958]
[1767588120724,1.5840528,135.31,135.25,0.35181958]
[1767588122230,1.5840528,135.31,135.24,7.0053289]
[1767588123132,6.6531,135.34,135.24,7.0053289]
[1767588123329,1.5840528,135.31,135.24,7.0053289]
[1767588126932,1.5840528,135.31,135.22,7.0061289]
[1767588127132,1.5840528,135.31,135.23,0.3477289]
[1767588127333,1.5840528,135.31,135.24,0.3477289]
[1767588130240,8.2385528,135.31,135.21,7.0067289]
[1767588130536,8.2385528,135.31,135.22,0.3477289]
[1767588130738,8.2385528,135.31,135.22,7.0063289]
[1767588131338,8.2385528,135.31,135.23,0.3477289]
[1767588133528,1.5840528,135.31,135.24,0.3477289]
[1767588133735,8.2377528,135.33,135.25,1.5840528]
[1767588133934,8.2377528,135.33,135.25,1.9317817]
[1767588134543,8.2377528,135.33,135.25,8.5888817]
[1767588134937,8.2377528,135.33,135.25,7.0048289]
[1767588136337,8.2377528,135.33,135.23,8.5896817]
[1767588136537,1.5840528,135.31,135.23,8.5896817]
[1767588137843,190.7649,135.35,135.23,0.3477289]
[1767588137844,1.5840528,135.29,135.23,0.3477289]
[1767588146450,1.5840528,135.29,135.21,0.3477289]